[Event "Polofinale MCR juniorek 2023"]
[Site "Czech Republic"]
[Date "2023.11.17"]
[Round "8.5"]
[White "Havelkova, Beata"]
[Black "Petirova, Iva"]
[Result "0-1"]
[TimeControl "90 min per 40 moves + 15 min + 30 sec / move from move 1"]
[WhiteFideId "23709405"]
[BlackFideId "23741961"]
[WhiteElo "1736"]
[BlackElo "1636"]

1. e4 {[%clk 01:30:59]} {[%emt 19:15:03]} c5 {[%clk 01:30:50]} {[%emt
00:00:10]} 2. c3 {[%clk 01:31:26]} {[%emt 00:00:03]} Nf6 {[%clk 01:31:07]}
{[%emt 00:00:13]} 3. e5 {[%clk 01:31:49]} {[%emt 00:00:07]} Nd5 {[%clk
01:31:31]} {[%emt 00:00:06]} 4. Nf3 {[%clk 01:32:07]} {[%emt 00:00:11]} e6
{[%clk 01:31:49]} {[%emt 00:00:13]} 5. d4 {[%clk 01:32:19]} {[%emt 00:00:18]}
cxd4 {[%clk 01:31:55]} {[%emt 00:00:25]} 6. cxd4 {[%clk 01:32:44]} {[%emt
00:00:04]} d6 {[%clk 01:31:47]} {[%emt 00:00:38]} 7. Bc4 {[%clk 01:32:42]}
{[%emt 00:00:32]} Be7 {[%clk 01:31:44]} {[%emt 00:00:33]} 8. O-O {[%clk
01:32:36]} {[%emt 00:00:35]} O-O {[%clk 01:31:47]} {[%emt 00:00:28]} 9. Qe2
{[%clk 01:32:33]} {[%emt 00:00:33]} b6 {[%clk 01:31:15]} {[%emt 00:01:02]} 10.
Rd1 {[%clk 01:31:37]} {[%emt 00:01:25]} Bb7 {[%clk 01:30:20]} {[%emt 00:01:26]}
11. Bxd5 {[%clk 01:31:44]} {[%emt 00:00:22]} exd5 {[%clk 01:29:09]} {[%emt
00:01:41]} 12. e6 {[%clk 01:31:46]} {[%emt 00:00:28]} Na6 {[%clk 01:26:20]}
{[%emt 00:03:19]} 13. Nc3 {[%clk 01:26:36]} {[%emt 00:05:40]} Nc7 {[%clk
01:25:43]} {[%emt 00:01:08]} 14. exf7+ {[%clk 01:26:54]} {[%emt 00:00:11]} Rxf7
{[%clk 01:26:07]} {[%emt 00:00:07]} 15. Be3 {[%clk 01:26:19]} {[%emt 00:01:05]}
h6 {[%clk 01:21:44]} {[%emt 00:04:53]} 16. Qd2 {[%clk 01:19:19]} {[%emt
00:07:29]} Qd7 {[%clk 01:16:57]} {[%emt 00:05:18]} 17. Ne1 {[%clk 01:16:10]}
{[%emt 00:03:39]} Raf8 {[%clk 01:15:51]} {[%emt 00:01:36]} 18. Nd3 {[%clk
01:13:35]} {[%emt 00:03:04]} Qg4 {[%clk 01:12:03]} {[%emt 00:04:18]} 19. h3
{[%clk 01:02:40]} {[%emt 00:11:26]} Qf5 {[%clk 01:07:16]} {[%emt 00:05:17]} 20.
Ne2 {[%clk 00:56:42]} {[%emt 00:06:27]} Ne6 {[%clk 01:03:23]} {[%emt 00:04:24]}
21. Rac1 {[%clk 00:47:41]} {[%emt 00:09:31]} Bg5 {[%clk 00:55:41]} {[%emt
00:08:12]} 22. Bxg5 {[%clk 00:46:10]} {[%emt 00:02:00]} hxg5 {[%clk 00:54:55]}
{[%emt 00:01:17]} 23. f3 {[%clk 00:37:24]} {[%emt 00:09:17]} Nf4 {[%clk
00:43:15]} {[%emt 00:12:09]} 24. Ng3 {[%clk 00:32:22]} {[%emt 00:05:32]} Qh7
{[%clk 00:38:26]} {[%emt 00:05:19]} 25. Nf2 {[%clk 00:31:38]} {[%emt 00:01:14]}
Bc8 {[%clk 00:31:41]} {[%emt 00:07:16]} 26. Rc3 {[%clk 00:26:53]} {[%emt
00:05:15]} Qh4 {[%clk 00:23:25]} {[%emt 00:08:45]} 27. Ngh1 {[%clk 00:25:56]}
{[%emt 00:01:27]} Bd7 {[%clk 00:19:59]} {[%emt 00:03:57]} 28. Kh2 {[%clk
00:21:34]} {[%emt 00:04:52]} Qh7 {[%clk 00:15:44]} {[%emt 00:04:45]} 29. Ng4
{[%clk 00:19:19]} {[%emt 00:02:45]} Re7 {[%clk 00:13:40]} {[%emt 00:02:34]} 30.
Ng3 {[%clk 00:16:09]} {[%emt 00:03:40]} Rfe8 {[%clk 00:13:12]} {[%emt
00:00:59]} 31. Qc2 {[%clk 00:15:30]} {[%emt 00:01:09]} Qh4 {[%clk 00:10:21]}
{[%emt 00:03:21]} 32. Rd2 {[%clk 00:13:28]} {[%emt 00:02:32]} Re1 {[%clk
00:06:43]} {[%emt 00:04:08]} 33. Rc7 {[%clk 00:09:08]} {[%emt 00:04:50]} R8e7
{[%clk 00:05:52]} {[%emt 00:01:20]} 34. Rxa7 {[%clk 00:06:07]} {[%emt
00:03:31]} Nh5 {[%clk 00:04:03]} {[%emt 00:02:19]} 35. Ra8+ {[%clk 00:05:02]}
{[%emt 00:01:36]} Re8 {[%clk 00:03:26]} {[%emt 00:01:08]} 36. Rxe8+ {[%clk
00:05:17]} {[%emt 00:00:15]} Rxe8 {[%clk 00:03:37]} {[%emt 00:00:19]} 37. Nxh5
{[%clk 00:05:41]} {[%emt 00:00:05]} Qxh5 {[%clk 00:03:29]} {[%emt 00:00:39]} 38.
Re2 {[%clk 00:04:33]} {[%emt 00:01:39]} Rc8 {[%clk 00:02:24]} {[%emt 00:01:34]}
39. Qd2 {[%clk 00:04:01]} {[%emt 00:01:02]} Qg6 {[%clk 00:02:13]} {[%emt
00:00:41]} 40. a3 {[%clk 00:01:08]} {[%emt 00:03:23]} Qf5 {[%clk 00:01:23]}
{[%emt 00:01:20]} 41. Kg1 {[%clk 00:14:09]} {[%emt 00:02:59]} Bb5 {[%clk
00:15:32]} {[%emt 00:01:51]} 42. Re1 {[%clk 00:14:26]} {[%emt 00:00:12]} Rc2
{[%clk 00:10:24]} {[%emt 00:05:38]} 43. Qb4 {[%clk 00:14:33]} {[%emt 00:00:24]}
Qd3 {[%clk 00:08:51]} {[%emt 00:02:02]} 44. Ne3 {[%clk 00:12:01]} {[%emt
00:03:03]} Rc1 {[%clk 00:08:03]} {[%emt 00:01:18]} 45. Kh2 {[%clk 00:07:18]}
{[%emt 00:05:13]} Rxe1 {[%clk 00:08:11]} {[%emt 00:00:22]} 46. Qxe1 {[%clk
00:07:38]} {[%emt 00:00:09]} Qxd4 {[%clk 00:08:21]} {[%emt 00:00:20]} 47. Ng4
{[%clk 00:06:05]} {[%emt 00:02:03]} Qf4+ {[%clk 00:07:29]} {[%emt 00:01:22]} 48.
Kh1 {[%clk 00:06:22]} {[%emt 00:00:12]} Kf7 {[%clk 00:07:07]} {[%emt 00:00:53]}
49. Qc3 {[%clk 00:06:13]} {[%emt 00:00:38]} Qc4 {[%clk 00:06:29]} {[%emt
00:01:09]} 50. Ne3 {[%clk 00:04:35]} {[%emt 00:02:08]} Qc5 {[%clk 00:05:54]}
{[%emt 00:01:05]} 51. Qxc5 {[%clk 00:03:16]} {[%emt 00:01:49]} bxc5 {[%clk
00:05:15]} {[%emt 00:01:09]} 52. Nxd5 {[%clk 00:03:40]} {[%emt 00:00:06]} Bc6
{[%clk 00:05:17]} {[%emt 00:00:27]} 53. Nb6 {[%clk 00:03:35]} {[%emt 00:00:35]}
d5 {[%clk 00:05:31]} {[%emt 00:00:17]} 54. Kg1 {[%clk 00:03:54]} {[%emt
00:00:10]} Ke6 {[%clk 00:05:49]} {[%emt 00:00:13]} 55. a4 {[%clk 00:02:02]}
{[%emt 00:02:22]} Ke5 {[%clk 00:05:53]} {[%emt 00:00:25]} 56. Kf2 {[%clk
00:02:11]} {[%emt 00:00:21]} Kd4 {[%clk 00:06:01]} {[%emt 00:00:22]} 57. Ke2
{[%clk 00:02:11]} {[%emt 00:00:30]} c4 {[%clk 00:05:52]} {[%emt 00:00:40]} 58.
a5 {[%clk 00:02:18]} {[%emt 00:00:23]} Kc5 {[%clk 00:06:03]} {[%emt 00:00:19]}
59. Ke3 {[%clk 00:02:01]} {[%emt 00:00:46]} d4+ {[%clk 00:06:15]} {[%emt
00:00:18]} 60. Kd2 {[%clk 00:02:11]} {[%emt 00:00:17]} Bb5 {[%clk 00:06:06]}
{[%emt 00:00:42]} 61. Nc8 {[%clk 00:00:57]} {[%emt 00:01:44]} Kb4 {[%clk
00:06:10]} {[%emt 00:00:49]} 62. Nd6 {[%clk 00:01:02]} {[%emt 00:00:24]} Bc6
{[%clk 00:05:41]} {[%emt 00:00:59]} 63. Nf5 {[%clk 00:00:46]} {[%emt 00:00:46]}
d3 {[%clk 00:05:41]} {[%emt 00:00:31]} 64. a6 {[%clk 00:00:48]} {[%emt
00:00:28]} Kb3 {[%clk 00:05:03]} {[%emt 00:01:08]} 65. Kc1 {[%clk 00:00:33]}
{[%emt 00:00:45]} c3 {[%clk 00:04:25]} {[%emt 00:01:08]} 66. bxc3 {[%clk
00:00:31]} {[%emt 00:00:32]} Kxc3 {[%clk 00:04:48]} {[%emt 00:00:06]} 67. a7
{[%clk 00:01:01]} {[%emt 00:00:01]} d2+ {[%clk 00:05:03]} {[%emt 00:00:15]} 68.
Kd1 {[%clk 00:01:03]} {[%emt 00:00:28]} Ba4+ {[%clk 00:05:26]} {[%emt
00:00:06]} 0-1

[Event "Polofinale MCR juniorek 2023"]
[Site "Czech Republic"]
[Date "2023.11.17"]
[Round "8.6"]
[White "Dudova, Pavlina"]
[Black "Hosova, Sandra"]
[Result "1/2-1/2"]
[TimeControl "90 min per 40 moves + 15 min + 30 sec / move from move 1"]
[WhiteFideId "394629"]
[BlackFideId "397717"]
[WhiteElo "1763"]
[BlackElo "1730"]

1. e4 {[%clk 01:30:55]} {[%emt 00:00:03]} c5 {[%clk 01:30:51]} {[%emt
00:00:10]} 2. Nf3 {[%clk 01:31:17]} {[%emt 00:00:08]} e6 {[%clk 01:31:11]}
{[%emt 00:00:11]} 3. d4 {[%clk 01:31:39]} {[%emt 00:00:08]} cxd4 {[%clk
01:31:32]} {[%emt 00:00:09]} 4. Nxd4 {[%clk 01:32:02]} {[%emt 00:00:07]} a6
{[%clk 01:31:43]} {[%emt 00:00:20]} 5. Nc3 {[%clk 01:30:06]} {[%emt 00:02:25]}
Qc7 {[%clk 01:32:01]} {[%emt 00:00:12]} 6. g3 {[%clk 01:18:46]} {[%emt
00:11:50]} Nf6 {[%clk 01:27:52]} {[%emt 00:04:39]} 7. Bg2 {[%clk 01:19:03]}
{[%emt 00:00:12]} Nc6 {[%clk 01:27:16]} {[%emt 00:01:07]} 8. O-O {[%clk
01:17:08]} {[%emt 00:02:25]} h5 {[%clk 01:17:34]} {[%emt 00:10:12]} 9. Nxc6
{[%clk 00:59:04]} {[%emt 00:18:34]} dxc6 {[%clk 01:16:18]} {[%emt 00:01:45]} 10.
Bg5 {[%clk 00:53:57]} {[%emt 00:05:36]} Bc5 {[%clk 01:10:36]} {[%emt 00:06:12]}
11. Qe2 {[%clk 00:42:47]} {[%emt 00:11:39]} Ng4 {[%clk 00:56:13]} {[%emt
00:14:55]} 12. Bf3 {[%clk 00:38:01]} {[%emt 00:05:15]} f6 {[%clk 00:53:01]}
{[%emt 00:03:43]} 13. Bxg4 {[%clk 00:35:55]} {[%emt 00:02:35]} hxg4 {[%clk
00:52:05]} {[%emt 00:01:26]} 14. Be3 {[%clk 00:35:49]} {[%emt 00:00:35]} Bd6
{[%clk 00:27:18]} {[%emt 00:25:20]} 15. Qxg4 {[%clk 00:28:59]} {[%emt
00:07:20]} g5 {[%clk 00:26:08]} {[%emt 00:01:40]} 16. f4 {[%clk 00:23:22]}
{[%emt 00:06:07]} Qh7 {[%clk 00:24:28]} {[%emt 00:02:10]} 17. Qe2 {[%clk
00:23:25]} {[%emt 00:00:27]} gxf4 {[%clk 00:20:03]} {[%emt 00:04:56]} 18. Bxf4
{[%clk 00:18:55]} {[%emt 00:04:59]} Bc5+ {[%clk 00:20:23]} {[%emt 00:00:10]} 19.
Kh1 {[%clk 00:19:12]} {[%emt 00:00:12]} e5 {[%clk 00:20:24]} {[%emt 00:00:30]}
20. Bd2 {[%clk 00:18:27]} {[%emt 00:01:15]} Bg4 {[%clk 00:20:32]} {[%emt
00:00:22]} 21. Qg2 {[%clk 00:18:07]} {[%emt 00:00:50]} Bh3 {[%clk 00:12:46]}
{[%emt 00:08:17]} 22. Qe2 {[%clk 00:18:20]} {[%emt 00:00:17]} Qg7 {[%clk
00:12:30]} {[%emt 00:00:46]} 23. Rf3 {[%clk 00:16:55]} {[%emt 00:01:54]} Bg4
{[%clk 00:11:48]} {[%emt 00:01:12]} 24. Raf1 {[%clk 00:16:53]} {[%emt
00:00:32]} O-O-O {[%clk 00:09:42]} {[%emt 00:02:37]} 25. Be3 {[%clk 00:15:57]}
{[%emt 00:01:24]} Bxe3 {[%clk 00:07:08]} {[%emt 00:03:05]} 26. Qxe3 {[%clk
00:16:17]} {[%emt 00:00:09]} Bxf3+ {[%clk 00:02:54]} {[%emt 00:04:44]} 27. Rxf3
{[%clk 00:16:19]} {[%emt 00:00:29]} Rh3 {[%clk 00:02:55]} {[%emt 00:00:29]} 28.
Rf2 {[%clk 00:15:22]} {[%emt 00:01:27]} Qg4 {[%clk 00:02:48]} {[%emt 00:00:37]}
29. Kg1 {[%clk 00:08:58]} {[%emt 00:06:54]} Rdh8 {[%clk 00:03:06]} {[%emt
00:00:12]} 30. Rg2 {[%clk 00:06:25]} {[%emt 00:03:02]} Qh5 {[%clk 00:02:59]}
{[%emt 00:00:38]} 31. Qd2 {[%clk 00:06:15]} {[%emt 00:00:39]} Qg4 {[%clk
00:01:55]} {[%emt 00:01:35]} 32. Qf2 {[%clk 00:05:25]} {[%emt 00:01:20]} Qg7
{[%clk 00:00:37]} {[%emt 00:01:49]} 33. Nb1 {[%emt 00:00:40]} 1/2-1/2

[Event "Polofinale MCR juniorek 2023"]
[Site "Czech Republic"]
[Date "2023.11.17"]
[Round "8.7"]
[White "Sikorova, Jana"]
[Black "Vavrinkova, Marie"]
[Result "1-0"]
[TimeControl "90 min per 40 moves + 15 min + 30 sec / move from move 1"]
[WhiteFideId "392472"]
[BlackFideId "392154"]
[WhiteElo "1662"]
[BlackElo "1492"]

1. d4 {[%clk 01:30:56]} {[%emt 00:00:03]} Nf6 {[%clk 01:30:42]} {[%emt
00:00:19]} 2. c4 {[%clk 01:31:14]} {[%emt 00:00:12]} g6 {[%clk 01:30:55]}
{[%emt 00:00:18]} 3. Nc3 {[%clk 01:30:59]} {[%emt 00:00:45]} Bg7 {[%clk
01:30:54]} {[%emt 00:00:31]} 4. Nf3 {[%clk 01:30:36]} {[%emt 00:00:52]} O-O
{[%clk 01:30:10]} {[%emt 00:01:14]} 5. Bg5 {[%clk 01:30:40]} {[%emt 00:00:25]}
h6 {[%clk 01:29:15]} {[%emt 00:01:26]} 6. Bh4 {[%clk 01:29:50]} {[%emt
00:01:20]} d6 {[%clk 01:28:14]} {[%emt 00:01:31]} 7. e3 {[%clk 01:29:15]}
{[%emt 00:01:04]} Nbd7 {[%clk 01:26:55]} {[%emt 00:01:50]} 8. Be2 {[%clk
01:27:47]} {[%emt 00:01:57]} e5 {[%clk 01:23:11]} {[%emt 00:04:15]} 9. Qc2
{[%clk 01:27:28]} {[%emt 00:00:49]} c6 {[%clk 01:21:50]} {[%emt 00:01:52]} 10.
O-O {[%clk 01:26:12]} {[%emt 00:01:45]} Re8 {[%clk 01:20:08]} {[%emt 00:02:12]}
11. Rfd1 {[%clk 01:22:27]} {[%emt 00:04:15]} Qe7 {[%clk 01:18:08]} {[%emt
00:02:30]} 12. d5 {[%clk 01:19:45]} {[%emt 00:03:11]} g5 {[%clk 01:11:28]}
{[%emt 00:07:09]} 13. Bg3 {[%clk 01:16:31]} {[%emt 00:03:44]} Nc5 {[%clk
01:06:18]} {[%emt 00:05:42]} 14. b4 {[%clk 01:14:38]} {[%emt 00:02:22]} Nce4
{[%clk 01:05:42]} {[%emt 00:01:05]} 15. Nxe4 {[%clk 01:01:56]} {[%emt
00:13:12]} Nxe4 {[%clk 01:05:49]} {[%emt 00:00:24]} 16. Qxe4 {[%clk 01:00:19]}
{[%emt 00:02:07]} f5 {[%clk 01:05:15]} {[%emt 00:01:04]} 17. Qc2 {[%clk
00:58:59]} {[%emt 00:01:50]} f4 {[%clk 01:03:05]} {[%emt 00:02:41]} 18. e4
{[%clk 00:57:04]} {[%emt 00:02:25]} Bd7 {[%clk 00:58:48]} {[%emt 00:04:46]} 19.
Qd2 {[%clk 00:53:07]} {[%emt 00:04:26]} Bf8 {[%clk 00:53:48]} {[%emt 00:05:31]}
20. Qd3 {[%clk 00:44:15]} {[%emt 00:09:22]} Rac8 {[%clk 00:50:55]} {[%emt
00:03:23]} 21. Rac1 {[%clk 00:42:46]} {[%emt 00:01:58]} Qf7 {[%clk 00:47:37]}
{[%emt 00:03:50]} 22. Nd2 {[%clk 00:40:38]} {[%emt 00:02:38]} Be7 {[%clk
00:44:52]} {[%emt 00:03:15]} 23. Nf1 {[%clk 00:37:04]} {[%emt 00:04:04]} Rf8
{[%clk 00:38:16]} {[%emt 00:07:05]} 24. h3 {[%clk 00:34:04]} {[%emt 00:03:30]}
fxg3 {[%clk 00:37:17]} {[%emt 00:01:30]} 25. Qxg3 {[%clk 00:34:21]} {[%emt
00:00:12]} cxd5 {[%clk 00:36:37]} {[%emt 00:01:10]} 26. cxd5 {[%clk 00:33:26]}
{[%emt 00:01:24]} Ba4 {[%clk 00:35:23]} {[%emt 00:01:44]} 27. Bg4 {[%clk
00:31:56]} {[%emt 00:01:59]} Rxc1 {[%clk 00:30:45]} {[%emt 00:05:09]} 28. Rxc1
{[%clk 00:32:03]} {[%emt 00:00:23]} Kg7 {[%clk 00:28:58]} {[%emt 00:02:17]} 29.
Ne3 {[%clk 00:31:05]} {[%emt 00:01:28]} Kh8 {[%clk 00:23:31]} {[%emt 00:05:57]}
30. Be6 {[%clk 00:29:27]} {[%emt 00:02:07]} Qh7 {[%clk 00:22:01]} {[%emt
00:02:01]} 31. Rc7 {[%clk 00:27:27]} {[%emt 00:02:29]} Re8 {[%clk 00:18:29]}
{[%emt 00:04:02]} 32. Nf5 {[%clk 00:26:27]} {[%emt 00:01:30]} a6 {[%clk
00:16:56]} {[%emt 00:02:04]} 33. Qg4 {[%clk 00:25:38]} {[%emt 00:01:18]} h5
{[%clk 00:16:42]} {[%emt 00:00:45]} 34. Qf3 {[%clk 00:24:16]} {[%emt 00:01:51]}
1-0

[Event "Polofinale MCR juniorek 2023"]
[Site "Czech Republic"]
[Date "2023.11.17"]
[Round "8.8"]
[White "Reznickova, Sibyla"]
[Black "Stavova, Helena"]
[Result "1-0"]
[TimeControl "90 min per 40 moves + 15 min + 30 sec / move from move 1"]
[WhiteFideId "398721"]
[BlackFideId "23714751"]
[WhiteElo "1413"]
[BlackElo "1425"]

1. d4 {[%clk 01:30:54]} {[%emt 00:00:05]} d5 {[%clk 01:30:48]} {[%emt
00:00:12]} 2. Bf4 {[%clk 01:31:06]} {[%emt 00:00:18]} Nf6 {[%clk 01:30:57]}
{[%emt 00:00:21]} 3. e3 {[%clk 01:30:52]} {[%emt 00:00:45]} e6 {[%clk
01:30:49]} {[%emt 00:00:38]} 4. Nf3 {[%clk 01:30:55]} {[%emt 00:00:27]} c5
{[%clk 01:30:59]} {[%emt 00:00:20]} 5. c3 {[%clk 01:30:37]} {[%emt 00:00:48]}
Nc6 {[%clk 01:30:29]} {[%emt 00:01:00]} 6. Bd3 {[%clk 01:30:03]} {[%emt
00:01:04]} Bd6 {[%clk 01:29:19]} {[%emt 00:01:39]} 7. Bg5 {[%clk 01:29:41]}
{[%emt 00:00:51]} O-O {[%clk 01:27:09]} {[%emt 00:02:40]} 8. Nbd2 {[%clk
01:29:00]} {[%emt 00:01:12]} cxd4 {[%clk 01:22:48]} {[%emt 00:04:52]} 9. exd4
{[%clk 01:25:41]} {[%emt 00:03:48]} Rb8 {[%clk 01:13:15]} {[%emt 00:10:02]} 10.
O-O {[%clk 01:24:56]} {[%emt 00:01:15]} b5 {[%clk 01:12:23]} {[%emt 00:01:23]}
11. a3 {[%clk 01:19:56]} {[%emt 00:05:29]} h6 {[%clk 01:03:15]} {[%emt
00:09:38]} 12. Bh4 {[%clk 01:16:42]} {[%emt 00:03:43]} Be7 {[%clk 01:02:13]}
{[%emt 00:01:32]} 13. Re1 {[%clk 01:13:12]} {[%emt 00:04:01]} Qc7 {[%clk
00:55:31]} {[%emt 00:07:12]} 14. Ne5 {[%clk 01:00:31]} {[%emt 00:13:11]} Na5
{[%clk 00:51:15]} {[%emt 00:04:46]} 15. b4 {[%clk 00:54:36]} {[%emt 00:06:25]}
Nc4 {[%clk 00:50:05]} {[%emt 00:01:39]} 16. Ndxc4 {[%clk 00:52:43]} {[%emt
00:02:23]} dxc4 {[%clk 00:49:52]} {[%emt 00:00:44]} 17. Bc2 {[%clk 00:50:44]}
{[%emt 00:02:29]} Nd5 {[%clk 00:39:50]} {[%emt 00:10:33]} 18. Bxe7 {[%clk
00:41:09]} {[%emt 00:10:05]} Nxe7 {[%clk 00:40:10]} {[%emt 00:00:09]} 19. Re3
{[%clk 00:38:03]} {[%emt 00:03:36]} Nd5 {[%clk 00:38:01]} {[%emt 00:02:40]} 20.
Rg3 {[%clk 00:34:22]} {[%emt 00:04:09]} Nf6 {[%clk 00:31:03]} {[%emt 00:07:27]}
21. Qf3 {[%clk 00:31:44]} {[%emt 00:03:09]} Kh8 {[%clk 00:29:32]} {[%emt
00:02:02]} 22. Rxg7 {[%clk 00:25:25]} {[%emt 00:06:50]} Kxg7 {[%clk 00:27:55]}
{[%emt 00:02:06]} 23. Qg3+ {[%clk 00:24:33]} {[%emt 00:01:22]} Ng4 {[%clk
00:26:47]} {[%emt 00:01:38]} 24. Qxg4+ {[%clk 00:24:29]} {[%emt 00:00:34]} Kh8
{[%clk 00:27:01]} {[%emt 00:00:15]} 25. Qf4 {[%clk 00:21:51]} {[%emt 00:03:08]}
Kg7 {[%clk 00:26:16]} {[%emt 00:01:15]} 26. Qg3+ {[%clk 00:22:08]} {[%emt
00:00:13]} 1-0

[Event "Polofinale MCR juniorek 2023"]
[Site "Czech Republic"]
[Date "2023.11.17"]
[Round "8.9"]
[White "Kavanova, Anezka"]
[Black "Macova, Marketa"]
[Result "1-0"]
[TimeControl "90 min per 40 moves + 15 min + 30 sec / move from move 1"]
[WhiteFideId "23745517"]
[BlackFideId "23715588"]
[WhiteElo "1434"]
[BlackElo "1416"]

1. e4 {[%clk 01:30:56]} {[%emt 00:00:03]} e5 {[%clk 01:30:55]} {[%emt
00:00:05]} 2. Nf3 {[%clk 01:31:21]} {[%emt 00:00:05]} Nc6 {[%clk 01:31:21]}
{[%emt 00:00:05]} 3. Bb5 {[%clk 01:31:47]} {[%emt 00:00:04]} Nf6 {[%clk
01:31:30]} {[%emt 00:00:21]} 4. O-O {[%clk 01:32:08]} {[%emt 00:00:09]} Nxe4
{[%clk 01:31:46]} {[%emt 00:00:14]} 5. d4 {[%clk 01:32:22]} {[%emt 00:00:16]}
Nd6 {[%clk 01:30:21]} {[%emt 00:01:55]} 6. Bg5 {[%clk 01:32:02]} {[%emt
00:00:50]} f6 {[%clk 01:30:04]} {[%emt 00:00:46]} 7. dxe5 {[%clk 01:29:28]}
{[%emt 00:03:04]} Nxb5 {[%clk 01:30:11]} {[%emt 00:00:23]} 8. exf6 {[%clk
01:29:50]} {[%emt 00:00:08]} gxf6 {[%clk 01:29:52]} {[%emt 00:00:48]} 9. Bf4
{[%clk 01:29:42]} {[%emt 00:00:39]} Nd6 {[%clk 01:19:58]} {[%emt 00:10:24]} 10.
Bxd6 {[%clk 01:28:05]} {[%emt 00:02:07]} Bxd6 {[%clk 01:18:44]} {[%emt
00:01:45]} 11. Re1+ {[%clk 01:27:44]} {[%emt 00:00:51]} Be7 {[%clk 01:18:09]}
{[%emt 00:01:04]} 12. Nh4 {[%clk 01:27:53]} {[%emt 00:00:21]} d6 {[%clk
01:10:09]} {[%emt 00:08:30]} 13. Qh5+ {[%clk 01:26:38]} {[%emt 00:01:45]} Kf8
{[%clk 01:08:58]} {[%emt 00:01:41]} 14. Ng6+ {[%clk 01:26:52]} {[%emt
00:00:17]} Kg7 {[%clk 01:05:05]} {[%emt 00:04:23]} 15. Nxh8 {[%clk 01:27:14]}
{[%emt 00:00:08]} Kxh8 {[%clk 01:05:25]} {[%emt 00:00:09]} 16. Nc3 {[%clk
01:26:22]} {[%emt 00:01:23]} Bd7 {[%clk 01:02:52]} {[%emt 00:03:04]} 17. Nd5
{[%clk 01:25:54]} {[%emt 00:00:58]} Be8 {[%clk 00:58:00]} {[%emt 00:05:21]} 18.
Qe2 {[%clk 01:24:09]} {[%emt 00:02:15]} Bf8 {[%clk 00:56:47]} {[%emt 00:01:43]}
19. Rad1 {[%clk 01:18:16]} {[%emt 00:06:21]} Ne5 {[%clk 00:56:07]} {[%emt
00:01:13]} 20. f4 {[%clk 01:13:49]} {[%emt 00:04:57]} Ng6 {[%clk 00:56:06]}
{[%emt 00:00:31]} 21. Qe6 {[%clk 01:07:26]} {[%emt 00:06:51]} Bg7 {[%clk
00:54:18]} {[%emt 00:02:20]} 22. Ne7 {[%clk 00:59:29]} {[%emt 00:08:26]} Bd7
{[%clk 00:48:15]} {[%emt 00:06:33]} 23. Nxg6+ {[%clk 00:58:58]} {[%emt
00:01:01]} hxg6 {[%clk 00:48:32]} {[%emt 00:00:13]} 24. Qe4 {[%clk 00:57:24]}
{[%emt 00:02:03]} Bf5 {[%clk 00:46:28]} {[%emt 00:02:35]} 25. Qa4 {[%clk
00:56:57]} {[%emt 00:00:58]} Qd7 {[%clk 00:45:40]} {[%emt 00:01:19]} 26. Qb3
{[%clk 00:56:16]} {[%emt 00:01:11]} b6 {[%clk 00:45:15]} {[%emt 00:00:55]} 27.
h3 {[%clk 00:53:36]} {[%emt 00:03:10]} Re8 {[%clk 00:43:53]} {[%emt 00:01:53]}
28. Rxe8+ {[%clk 00:50:25]} {[%emt 00:03:41]} Qxe8 {[%clk 00:43:52]} {[%emt
00:00:31]} 29. g4 {[%clk 00:50:47]} {[%emt 00:00:07]} Bd7 {[%clk 00:42:53]}
{[%emt 00:01:28]} 30. Qc3 {[%clk 00:48:40]} {[%emt 00:02:38]} f5 {[%clk
00:40:32]} {[%emt 00:02:52]} 31. Qg3 {[%clk 00:49:00]} {[%emt 00:00:09]} Bxb2
{[%clk 00:36:39]} {[%emt 00:04:23]} 32. Qh4+ {[%clk 00:48:55]} {[%emt
00:00:35]} Kg8 {[%clk 00:34:32]} {[%emt 00:02:37]} 33. Re1 {[%clk 00:49:08]}
{[%emt 00:00:16]} Bd4+ {[%clk 00:32:59]} {[%emt 00:02:04]} 34. Kh2 {[%clk
00:49:05]} {[%emt 00:00:32]} Qc8 {[%clk 00:30:51]} {[%emt 00:02:40]} 35. Re7
{[%clk 00:48:34]} {[%emt 00:01:00]} Bg7 {[%clk 00:30:16]} {[%emt 00:01:05]} 36.
Qg3 {[%clk 00:43:52]} {[%emt 00:05:12]} fxg4 {[%clk 00:26:53]} {[%emt
00:03:54]} 37. Qb3+ {[%clk 00:43:50]} {[%emt 00:00:32]} Kh8 {[%clk 00:21:47]}
{[%emt 00:05:36]} 38. Qf7 {[%clk 00:44:11]} {[%emt 00:00:09]} Qf8 {[%clk
00:16:50]} {[%emt 00:05:26]} 39. Rxd7 {[%clk 00:44:19]} {[%emt 00:00:23]} Qxf7
{[%clk 00:15:53]} {[%emt 00:01:27]} 40. Rxf7 {[%clk 00:44:40]} {[%emt
00:00:08]} c5 {[%clk 00:16:01]} {[%emt 00:00:23]} 41. hxg4 {[%clk 00:44:49]}
{[%emt 00:00:21]} b5 {[%clk 00:15:25]} {[%emt 00:01:06]} 42. Rxa7 {[%clk
00:44:51]} {[%emt 00:00:28]} b4 {[%clk 00:15:43]} {[%emt 00:00:12]} 43. Rd7
{[%clk 00:44:07]} {[%emt 00:01:14]} Bf8 {[%clk 00:15:59]} {[%emt 00:00:14]} 44.
Kh3 {[%clk 00:44:26]} {[%emt 00:00:11]} c4 {[%clk 00:15:26]} {[%emt 00:01:03]}
45. Kh4 {[%clk 00:43:59]} {[%emt 00:00:57]} b3 {[%clk 00:15:24]} {[%emt
00:00:32]} 46. axb3 {[%clk 00:44:20]} {[%emt 00:00:09]} cxb3 {[%clk 00:15:38]}
{[%emt 00:00:15]} 47. cxb3 {[%clk 00:44:46]} {[%emt 00:00:05]} Kg8 {[%clk
00:15:49]} {[%emt 00:00:19]} 48. Kg5 {[%clk 00:45:03]} {[%emt 00:00:13]} Kh8
{[%clk 00:15:55]} {[%emt 00:00:23]} 49. Kxg6 {[%clk 00:45:27]} {[%emt
00:00:06]} Kg8 {[%emt 00:00:39]} 50. b4 {[%clk 00:45:47]} {[%emt 00:00:01]} d5
{[%clk 00:15:43]} {[%emt 00:00:42]} 51. Rxd5 {[%clk 00:45:55]} {[%emt
00:00:23]} Bxb4 {[%clk 00:16:04]} {[%emt 00:00:08]} 52. Rd8+ {[%clk 00:46:20]}
{[%emt 00:00:05]} Bf8 {[%clk 00:16:26]} {[%emt 00:00:07]} 53. Kf6 {[%clk
00:46:13]} {[%emt 00:00:37]} Kh8 {[%clk 00:16:15]} {[%emt 00:00:41]} 54. Rxf8+
{[%clk 00:46:36]} {[%emt 00:00:08]} Kh7 {[%clk 00:16:41]} {[%emt 00:00:04]} 55.
f5 {[%clk 00:46:44]} {[%emt 00:00:22]} 1-0